[Event "Titled Tuesday Blitz March 15 Late 2022"]
[White "Urbina Perez, Juan Antonio"]
[Black "Ardila, Oscar Humberto"]
[WhiteFideId "2217368"]
[BlackFideId "4404742"]
[WhiteElo "2192"]
[BlackElo "1966"]
[Result "1-0"]
[Round "02"]
[TimeControl "180+1"]
[Date "2022.03.16"]
[WhiteClock "0:00:06"]
[BlackClock "0:00:08"]

1. d4 {[%clk 0:03:00]}  Nf6 {[%clk 0:02:59]} 2. Nf3 {[%clk 0:02:57]}  e6 {[%clk 0:02:59]} 3. g3 {[%clk 0:02:56]}  Be7 {[%clk 0:02:58]} 4. Bg2 {[%clk 0:02:57]}  O-O {[%clk 0:02:58]} 5. O-O {[%clk 0:02:58]}  d6 {[%clk 0:02:59]} 6. c4 {[%clk 0:02:58]}  Nbd7 {[%clk 0:02:59]} 7. Nc3 {[%clk 0:02:59]}  c5 {[%clk 0:02:56]} 8. e4 {[%clk 0:02:57]}  cxd4 {[%clk 0:02:53]} 9. Nxd4 {[%clk 0:02:58]}  a6 {[%clk 0:02:52]} 10. h3 {[%clk 0:02:57]}  Qc7 {[%clk 0:02:52]} 11. Be3 {[%clk 0:02:55]}  Qxc4 {[%clk 0:02:23]} 12. Rc1 {[%clk 0:02:50]}  Qb4 {[%clk 0:02:20]} 13. Qc2 {[%clk 0:02:30]}  Qa5 {[%clk 0:02:12]} 14. Rfd1 {[%clk 0:02:07]}  Qh5 {[%clk 0:02:10]} 15. g4 {[%clk 0:01:53]}  Qg6 {[%clk 0:02:09]} 16. f4 {[%clk 0:01:51]}  h5 {[%clk 0:02:01]} 17. f5 {[%clk 0:01:47]}  exf5 {[%clk 0:01:59]} 18. exf5 {[%clk 0:01:45]}  Qh7 {[%clk 0:01:52]} 19. g5 {[%clk 0:01:44]}  Ne8 {[%clk 0:01:48]} 20. g6 {[%clk 0:01:42]}  Qh8 {[%clk 0:01:38]} 21. Bd5 {[%clk 0:01:28]}  Ne5 {[%clk 0:01:35]} 22. Bf4 {[%clk 0:01:14]}  Nf6 {[%clk 0:01:30]} 23. Bxe5 {[%clk 0:00:59]}  Nxd5 {[%clk 0:01:28]} 24. Nxd5 {[%clk 0:00:59]}  Bg5 {[%clk 0:01:19]} 25. Bf4 {[%clk 0:00:46]}  Bd8 {[%clk 0:01:06]} 26. Bxd6 {[%clk 0:00:41]}  Re8 {[%clk 0:01:04]} 27. gxf7+ {[%clk 0:00:33]}  Kxf7 {[%clk 0:01:03]} 28. Nc7 {[%clk 0:00:27]}  Bxc7 {[%clk 0:00:47]} 29. Qxc7+ {[%clk 0:00:28]}  Kg8 {[%clk 0:00:48]} 30. Re1 {[%clk 0:00:18]}  Kh7 {[%clk 0:00:43]} 31. f6 {[%clk 0:00:15]}  Rxe1+ {[%clk 0:00:42]} 32. Rxe1 {[%clk 0:00:14]}  Bxh3 {[%clk 0:00:42]} 33. Qc2+ {[%clk 0:00:11]}  Kh6 {[%clk 0:00:34]} 34. Bf4+ {[%clk 0:00:07]}  g5 {[%clk 0:00:34]} 35. Nf5+ {[%clk 0:00:07]}  Bxf5 {[%clk 0:00:29]} 36. Qxf5 {[%clk 0:00:08]}  Rg8 {[%clk 0:00:24]} 37. Bg3 {[%clk 0:00:06]}  Qh7 {[%clk 0:00:19]} 38. Qe6 {[%clk 0:00:03]}  Rg6 {[%clk 0:00:15]} 39. Bd6 {[%clk 0:00:01]}  h4 {[%clk 0:00:12]} 40. Be7 {[%clk 0:00:02]}  Kh5 {[%clk 0:00:11]} 41. Qh3 {[%clk 0:00:02]}  g4 {[%clk 0:00:10]} 42. Re5+ {[%clk 0:00:02]}  Rg5 {[%clk 0:00:10]} 43. Rxg5+ {[%clk 0:00:03]}  Kxg5 {[%clk 0:00:10]} 44. f7+ {[%clk 0:00:04]}  Kf5 {[%clk 0:00:09]} 45. Qd3+ {[%clk 0:00:04]}  Ke6 {[%clk 0:00:08]} 46. Qxh7 {[%clk 0:00:05]}  Kxe7 {[%clk 0:00:09]} 47. Qg7 {[%clk 0:00:05]}  g3 {[%clk 0:00:08]} 48. f8=Q+ {[%clk 0:00:06]} 1-0


[Site "https://www.chess.com"]

[Event "Titled Tuesday Blitz March 15 Late 2022"]
[White "Van Foreest, Jorden"]
[Black "Aydin, Gulenay"]
[WhiteFideId "1039784"]
[BlackFideId "34557431"]
[WhiteElo "2609"]
[BlackElo "1429"]
[Result "1-0"]
[Round "02"]
[TimeControl "180+1"]
[Date "2022.03.16"]
[WhiteClock "0:01:59"]
[BlackClock "0:00:03"]

1. e4 {[%clk 0:03:00]}  c5 {[%clk 0:02:59]} 2. Nf3 {[%clk 0:03:00]}  d6 {[%clk 0:03:00]} 3. Bb5+ {[%clk 0:03:01]}  Bd7 {[%clk 0:02:59]} 4. Bxd7+ {[%clk 0:03:01]}  Qxd7 {[%clk 0:03:00]} 5. O-O {[%clk 0:03:02]}  Nc6 {[%clk 0:03:00]} 6. Re1 {[%clk 0:03:02]}  Nf6 {[%clk 0:02:59]} 7. c3 {[%clk 0:03:03]}  e6 {[%clk 0:03:00]} 8. d4 {[%clk 0:03:03]}  cxd4 {[%clk 0:03:01]} 9. cxd4 {[%clk 0:03:04]}  d5 {[%clk 0:03:01]} 10. e5 {[%clk 0:03:04]}  Ng8 {[%clk 0:03:02]} 11. Nc3 {[%clk 0:03:02]}  Nge7 {[%clk 0:03:01]} 12. Ne2 {[%clk 0:02:51]}  h5 {[%clk 0:02:58]} 13. Bg5 {[%clk 0:02:49]}  Nf5 {[%clk 0:02:51]} 14. Rc1 {[%clk 0:02:49]}  Be7 {[%clk 0:02:40]} 15. a3 {[%clk 0:02:44]}  O-O-O {[%clk 0:02:31]} 16. b4 {[%clk 0:02:40]}  Kb8 {[%clk 0:02:31]} 17. Qd2 {[%clk 0:02:40]}  b6 {[%clk 0:01:40]} 18. Rc2 {[%clk 0:02:37]}  Rc8 {[%clk 0:01:40]} 19. Rec1 {[%clk 0:02:37]}  Bxg5 {[%clk 0:01:34]} 20. Nxg5 {[%clk 0:02:38]}  f6 {[%clk 0:01:11]} 21. Nf3 {[%clk 0:02:37]}  Nce7 {[%clk 0:00:58]} 22. Nf4 {[%clk 0:02:25]}  h4 {[%clk 0:00:37]} 23. h3 {[%clk 0:02:22]}  Nc6 {[%clk 0:00:33]} 24. Ng6 {[%clk 0:02:15]}  Rh6 {[%clk 0:00:27]} 25. exf6 {[%clk 0:02:07]}  gxf6 {[%clk 0:00:17]} 26. Ngxh4 {[%clk 0:02:06]}  Rxh4 {[%clk 0:00:09]} 27. Nxh4 {[%clk 0:02:06]}  Nxh4 {[%clk 0:00:10]} 28. Qf4+ {[%clk 0:02:07]}  Kb7 {[%clk 0:00:08]} 29. Qxh4 {[%clk 0:02:07]}  Qg7 {[%clk 0:00:07]} 30. b5 {[%clk 0:02:05]}  Nxd4 {[%clk 0:00:06]} 31. Qxd4 {[%clk 0:02:04]}  Rg8 {[%clk 0:00:03]} 32. Rc7+ {[%clk 0:01:59]} 1-0


[Site "https://www.chess.com"]

[Event "Titled Tuesday Blitz March 15 Late 2022"]
[White "Vargas Pereda, Jesus Manue"]
[Black "Batsiashvili, Nino"]
[WhiteFideId "5115710"]
[BlackFideId "13602993"]
[WhiteElo "1852"]
[BlackElo "2192"]
[Result "0-1"]
[Round "02"]
[TimeControl "180+1"]
[Date "2022.03.16"]
[WhiteClock "0:01:58"]
[BlackClock "0:01:55"]

1. d4 {[%clk 0:03:00]}  d5 {[%clk 0:02:59]} 2. Bf4 {[%clk 0:02:58]}  e6 {[%clk 0:02:59]} 3. e3 {[%clk 0:02:58]}  Bd6 {[%clk 0:02:58]} 4. Nd2 {[%clk 0:02:53]}  Bxf4 {[%clk 0:02:57]} 5. exf4 {[%clk 0:02:54]}  c5 {[%clk 0:02:58]} 6. dxc5 {[%clk 0:02:54]}  Qc7 {[%clk 0:02:51]} 7. Ngf3 {[%clk 0:02:53]}  Qxf4 {[%clk 0:02:49]} 8. Bd3 {[%clk 0:02:46]}  Nd7 {[%clk 0:02:47]} 9. O-O {[%clk 0:02:40]}  Nxc5 {[%clk 0:02:44]} 10. Bb5+ {[%clk 0:02:40]}  Bd7 {[%clk 0:02:44]} 11. Qe2 {[%clk 0:02:27]}  Nf6 {[%clk 0:02:39]} 12. c4 {[%clk 0:02:25]}  Bxb5 {[%clk 0:02:37]} 13. cxb5 {[%clk 0:02:24]}  O-O {[%clk 0:02:37]} 14. a3 {[%clk 0:02:24]}  Nfe4 {[%clk 0:02:20]} 15. b4 {[%clk 0:02:12]}  Nxd2 {[%clk 0:02:12]} 16. Nxd2 {[%clk 0:02:12]}  Na4 {[%clk 0:02:04]} 17. Rac1 {[%clk 0:02:08]}  Rfc8 {[%clk 0:02:02]} 18. Nf3 {[%clk 0:01:58]}  Rxc1 {[%clk 0:01:55]} 0-1


[Site "https://www.chess.com"]

[Event "Titled Tuesday Blitz March 15 Late 2022"]
[White "Vifleemskaia, Svetlana"]
[Black "Sztokbant, Bernardo Vainzoff"]
[WhiteFideId "4129490"]
[BlackFideId "2115956"]
[WhiteElo "1901"]
[BlackElo "2237"]
[Result "0-1"]
[Round "02"]
[TimeControl "180+1"]
[Date "2022.03.16"]
[WhiteClock "0:00:01"]
[BlackClock "0:00:58"]

1. d4 {[%clk 0:02:41]}  Nf6 {[%clk 0:02:59]} 2. c4 {[%clk 0:02:40]}  g6 {[%clk 0:02:58]} 3. Nc3 {[%clk 0:02:40]}  d5 {[%clk 0:02:57]} 4. cxd5 {[%clk 0:02:40]}  Nxd5 {[%clk 0:02:58]} 5. Bd2 {[%clk 0:02:40]}  Bg7 {[%clk 0:02:57]} 6. e4 {[%clk 0:02:40]}  Nxc3 {[%clk 0:02:58]} 7. Bxc3 {[%clk 0:02:41]}  O-O {[%clk 0:02:58]} 8. Qd2 {[%clk 0:02:40]}  c5 {[%clk 0:02:58]} 9. d5 {[%clk 0:02:39]}  e6 {[%clk 0:02:56]} 10. Bc4 {[%clk 0:02:38]}  exd5 {[%clk 0:02:56]} 11. Bxd5 {[%clk 0:02:37]}  Nc6 {[%clk 0:02:56]} 12. Ne2 {[%clk 0:02:33]}  Re8 {[%clk 0:02:52]} 13. O-O {[%clk 0:02:31]}  Be6 {[%clk 0:02:38]} 14. Nf4 {[%clk 0:02:25]}  Bxd5 {[%clk 0:02:28]} 15. exd5 {[%clk 0:02:18]}  Nd4 {[%clk 0:02:24]} 16. Rfe1 {[%clk 0:02:06]}  Qg5 {[%clk 0:02:16]} 17. Kh1 {[%clk 0:01:51]}  h5 {[%clk 0:02:03]} 18. d6 {[%clk 0:01:17]}  Qf5 {[%clk 0:01:57]} 19. Bxd4 {[%clk 0:01:11]}  Bxd4 {[%clk 0:01:55]} 20. g3 {[%clk 0:00:47]}  Rad8 {[%clk 0:01:53]} 21. Qd3 {[%clk 0:00:27]}  Rxe1+ {[%clk 0:01:45]} 22. Rxe1 {[%clk 0:00:25]}  Qxd3 {[%clk 0:01:46]} 23. Nxd3 {[%clk 0:00:25]}  Rxd6 {[%clk 0:01:46]} 24. Re7 {[%clk 0:00:23]}  c4 {[%clk 0:01:46]} 25. Nb4 {[%clk 0:00:17]}  Rb6 {[%clk 0:01:27]} 26. a3 {[%clk 0:00:12]}  Bxb2 {[%clk 0:01:23]} 27. Rc7 {[%clk 0:00:10]}  c3 {[%clk 0:01:11]} 28. Kg2 {[%clk 0:00:05]}  Kg7 {[%clk 0:01:06]} 29. Nd5 {[%clk 0:00:05]}  Rc6 {[%clk 0:01:06]} 30. Rxc6 {[%clk 0:00:03]}  bxc6 {[%clk 0:01:07]} 31. Nb4 {[%clk 0:00:03]}  Bxa3 {[%clk 0:01:05]} 32. Nc2 {[%clk 0:00:03]}  Bc5 {[%clk 0:01:04]} 33. Kf3 {[%clk 0:00:04]}  Kf6 {[%clk 0:01:03]} 34. Ke4 {[%clk 0:00:04]}  Bxf2 {[%clk 0:01:03]} 35. Kd3 {[%clk 0:00:05]}  Kf5 {[%clk 0:01:00]} 36. Kxc3 {[%clk 0:00:05]}  Kg4 {[%clk 0:01:01]} 37. Kd3 {[%clk 0:00:04]}  Kh3 {[%clk 0:01:01]} 38. Ke2 {[%clk 0:00:04]}  Bc5 {[%clk 0:01:01]} 39. Kf3 {[%clk 0:00:04]}  Kxh2 {[%clk 0:01:01]} 40. g4 {[%clk 0:00:04]}  h4 {[%clk 0:01:00]} 41. Ne1 {[%clk 0:00:02]}  h3 {[%clk 0:01:01]} 42. Nd3 {[%clk 0:00:01]}  Bd6 {[%clk 0:00:58]} 0-1


[Site "https://www.chess.com"]

[Event "Titled Tuesday Blitz March 15 Late 2022"]
[White "VinceBlitzSociety"]
[Black "Sadilek, Peter"]
[BlackFideId "1616439"]
[WhiteElo "2547"]
[BlackElo "2145"]
[Result "1-0"]
[Round "02"]
[TimeControl "180+1"]
[Date "2022.03.16"]
[WhiteClock "0:00:38"]
[BlackClock "0:00:02"]

1. e4 {[%clk 0:02:51]}  c5 {[%clk 0:02:55]} 2. Nc3 {[%clk 0:02:51]}  g6 {[%clk 0:02:55]} 3. Nf3 {[%clk 0:02:50]}  Bg7 {[%clk 0:02:55]} 4. Bc4 {[%clk 0:02:51]}  Nc6 {[%clk 0:02:54]} 5. O-O {[%clk 0:02:51]}  e6 {[%clk 0:02:54]} 6. d4 {[%clk 0:02:51]}  cxd4 {[%clk 0:02:50]} 7. Nb5 {[%clk 0:02:51]}  d6 {[%clk 0:02:30]} 8. Nbxd4 {[%clk 0:02:48]}  a6 {[%clk 0:02:16]} 9. Be3 {[%clk 0:02:41]}  Nf6 {[%clk 0:02:13]} 10. Nxc6 {[%clk 0:02:39]}  bxc6 {[%clk 0:02:13]} 11. e5 {[%clk 0:02:40]}  Nd5 {[%clk 0:02:13]} 12. Bg5 {[%clk 0:02:38]}  f6 {[%clk 0:02:01]} 13. exf6 {[%clk 0:02:38]}  Bxf6 {[%clk 0:02:02]} 14. Bh6 {[%clk 0:02:22]}  Ne7 {[%clk 0:01:34]} 15. Re1 {[%clk 0:02:19]}  d5 {[%clk 0:01:28]} 16. Bd3 {[%clk 0:02:19]}  Qd6 {[%clk 0:01:15]} 17. c4 {[%clk 0:02:14]}  e5 {[%clk 0:01:13]} 18. cxd5 {[%clk 0:02:11]}  cxd5 {[%clk 0:01:14]} 19. Rc1 {[%clk 0:02:10]}  Bg4 {[%clk 0:01:01]} 20. Rc3 {[%clk 0:01:37]}  Rd8 {[%clk 0:00:52]} 21. Qa4+ {[%clk 0:01:32]}  Kf7 {[%clk 0:00:51]} 22. Qxg4 {[%clk 0:01:31]}  e4 {[%clk 0:00:50]} 23. Bf4 {[%clk 0:01:25]}  Qe6 {[%clk 0:00:48]} 24. Qxe6+ {[%clk 0:01:25]}  Kxe6 {[%clk 0:00:49]} 25. Ng5+ {[%clk 0:01:24]}  Bxg5 {[%clk 0:00:49]} 26. Bxg5 {[%clk 0:01:24]}  Rb8 {[%clk 0:00:44]} 27. Bxe7 {[%clk 0:01:15]}  Kxe7 {[%clk 0:00:43]} 28. b3 {[%clk 0:01:14]}  Kd6 {[%clk 0:00:43]} 29. Bxa6 {[%clk 0:01:14]}  Ra8 {[%clk 0:00:43]} 30. Bf1 {[%clk 0:01:13]}  Rxa2 {[%clk 0:00:43]} 31. Rd1 {[%clk 0:01:14]}  Rf8 {[%clk 0:00:39]} 32. f3 {[%clk 0:01:12]}  Ke5 {[%clk 0:00:37]} 33. Rc5 {[%clk 0:01:08]}  exf3 {[%clk 0:00:35]} 34. Rcxd5+ {[%clk 0:01:08]}  Ke4 {[%clk 0:00:34]} 35. R5d4+ {[%clk 0:01:06]}  Ke5 {[%clk 0:00:33]} 36. gxf3 {[%clk 0:01:06]}  Rxf3 {[%clk 0:00:32]} 37. R4d2 {[%clk 0:01:06]}  Rxd2 {[%clk 0:00:31]} 38. Rxd2 {[%clk 0:01:06]}  Rxb3 {[%clk 0:00:32]} 39. Rd7 {[%clk 0:01:05]}  h5 {[%clk 0:00:30]} 40. Ra7 {[%clk 0:01:03]}  Kf4 {[%clk 0:00:28]} 41. Ra4+ {[%clk 0:01:02]}  Kg5 {[%clk 0:00:28]} 42. Ra6 {[%clk 0:01:00]}  Kf5 {[%clk 0:00:23]} 43. Kf2 {[%clk 0:01:00]}  g5 {[%clk 0:00:22]} 44. Ra5+ {[%clk 0:00:59]}  Kf4 {[%clk 0:00:23]} 45. Ra4+ {[%clk 0:00:59]}  Kf5 {[%clk 0:00:23]} 46. Be2 {[%clk 0:00:59]}  g4 {[%clk 0:00:22]} 47. Ra5+ {[%clk 0:00:59]}  Kg6 {[%clk 0:00:21]} 48. Rd5 {[%clk 0:00:59]}  Rb2 {[%clk 0:00:20]} 49. Re5 {[%clk 0:00:56]}  h4 {[%clk 0:00:19]} 50. Re4 {[%clk 0:00:50]}  Kf5 {[%clk 0:00:16]} 51. Re8 {[%clk 0:00:48]}  Kf4 {[%clk 0:00:10]} 52. Rf8+ {[%clk 0:00:48]}  Kg5 {[%clk 0:00:09]} 53. Rg8+ {[%clk 0:00:44]}  Kf5 {[%clk 0:00:09]} 54. Ke3 {[%clk 0:00:43]}  g3 {[%clk 0:00:03]} 55. hxg3 {[%clk 0:00:43]}  hxg3 {[%clk 0:00:04]} 56. Bd3+ {[%clk 0:00:41]}  Ke5 {[%clk 0:00:04]} 57. Rg5+ {[%clk 0:00:41]}  Kf6 {[%clk 0:00:03]} 58. Rxg3 {[%clk 0:00:42]}  Ke5 {[%clk 0:00:03]} 59. Rg5+ {[%clk 0:00:42]}  Kf6 {[%clk 0:00:04]} 60. Ra5 {[%clk 0:00:43]}  Rb6 {[%clk 0:00:03]} 61. Kf4 {[%clk 0:00:43]}  Rb4+ {[%clk 0:00:02]} 62. Be4 {[%clk 0:00:43]}  Rb6 {[%clk 0:00:03]} 63. Rh5 {[%clk 0:00:43]}  Rb4 {[%clk 0:00:02]} 64. Rh6+ {[%clk 0:00:44]}  Kg7 {[%clk 0:00:03]} 65. Ra6 {[%clk 0:00:43]}  Rb2 {[%clk 0:00:01]} 66. Bf5 {[%clk 0:00:42]}  Kf7 {[%clk 0:00:02]} 67. Ke5 {[%clk 0:00:40]}  Ke7 {[%clk 0:00:02]} 68. Ra7+ {[%clk 0:00:40]}  Kd8 {[%clk 0:00:02]} 69. Be4 {[%clk 0:00:39]}  Rb5+ {[%clk 0:00:02]} 70. Kd6 {[%clk 0:00:38]}  Rb6+ {[%clk 0:00:02]} 71. Bc6 {[%clk 0:00:39]}  Rb8 {[%clk 0:00:02]} 72. Rh7 {[%clk 0:00:38]} 1-0


[Site "https://www.chess.com"]

[Event "Titled Tuesday Blitz March 15 Late 2022"]
[White "Vlassov, Nikolai"]
[Black "Tari, Aryan"]
[WhiteFideId "4103360"]
[BlackFideId "1510045"]
[WhiteElo "2407"]
[BlackElo "2567"]
[Result "0-1"]
[Round "02"]
[TimeControl "180+1"]
[Date "2022.03.15"]
[WhiteClock "0:01:08"]
[BlackClock "0:01:34"]

1. e4 {[%clk 0:03:00]}  c6 {[%clk 0:02:48]} 2. d4 {[%clk 0:03:01]}  d5 {[%clk 0:02:49]} 3. e5 {[%clk 0:03:01]}  Bf5 {[%clk 0:02:49]} 4. Nc3 {[%clk 0:03:02]}  e6 {[%clk 0:02:45]} 5. g4 {[%clk 0:03:02]}  Bg6 {[%clk 0:02:45]} 6. Nge2 {[%clk 0:03:02]}  c5 {[%clk 0:02:41]} 7. Be3 {[%clk 0:03:03]}  Nc6 {[%clk 0:02:38]} 8. dxc5 {[%clk 0:03:02]}  h5 {[%clk 0:02:35]} 9. Nd4 {[%clk 0:02:59]}  hxg4 {[%clk 0:02:30]} 10. Bb5 {[%clk 0:02:58]}  Rc8 {[%clk 0:02:31]} 11. Qxg4 {[%clk 0:02:54]}  Nh6 {[%clk 0:02:09]} 12. Bxh6 {[%clk 0:02:33]}  Rxh6 {[%clk 0:02:10]} 13. Nxe6 {[%clk 0:02:33]}  fxe6 {[%clk 0:02:02]} 14. Qxe6+ {[%clk 0:02:33]}  Be7 {[%clk 0:02:02]} 15. O-O-O {[%clk 0:02:11]}  Kf8 {[%clk 0:01:54]} 16. Rxd5 {[%clk 0:02:02]}  Bg5+ {[%clk 0:01:54]} 17. Kb1 {[%clk 0:01:53]}  Bxc2+ {[%clk 0:01:53]} 18. Kxc2 {[%clk 0:01:49]}  Rxe6 {[%clk 0:01:54]} 19. Rxd8+ {[%clk 0:01:48]}  Rxd8 {[%clk 0:01:55]} 20. Bxc6 {[%clk 0:01:25]}  bxc6 {[%clk 0:01:51]} 21. f4 {[%clk 0:01:17]}  Bxf4 {[%clk 0:01:50]} 22. Rf1 {[%clk 0:01:17]}  g5 {[%clk 0:01:51]} 23. h4 {[%clk 0:01:18]}  Kg7 {[%clk 0:01:43]} 24. hxg5 {[%clk 0:01:18]}  Bxe5 {[%clk 0:01:44]} 25. Re1 {[%clk 0:01:08]}  Rde8 {[%clk 0:01:34]} 26. Rd1 {[%clk 0:01:08]}  Bxc3 {[%clk 0:01:34]} 27. Kxc3 {[%clk 0:01:08]}  Kg6 {[%clk 0:01:34]} 0-1


[Site "https://www.chess.com"]

[Event "Titled Tuesday Blitz March 15 Late 2022"]
[White "Vokhidov, Shamsiddin"]
[Black "Ambartsumova, Karina"]
[WhiteFideId "14204223"]
[BlackFideId "4166299"]
[WhiteElo "2611"]
[BlackElo "2262"]
[Result "1-0"]
[Round "02"]
[TimeControl "180+1"]
[Date "2022.03.15"]
[WhiteClock "0:00:51"]
[BlackClock "0:00:19"]

1. e4 {[%clk 0:02:50]}  e5 {[%clk 0:02:58]} 2. Nf3 {[%clk 0:02:50]}  Nc6 {[%clk 0:02:57]} 3. d4 {[%clk 0:02:49]}  exd4 {[%clk 0:02:56]} 4. Nxd4 {[%clk 0:02:50]}  Bc5 {[%clk 0:02:56]} 5. Be3 {[%clk 0:02:49]}  Qf6 {[%clk 0:02:55]} 6. c3 {[%clk 0:02:49]}  Nge7 {[%clk 0:02:43]} 7. g3 {[%clk 0:02:48]}  d5 {[%clk 0:02:21]} 8. Bg2 {[%clk 0:02:47]}  dxe4 {[%clk 0:02:20]} 9. O-O {[%clk 0:02:47]}  O-O {[%clk 0:02:07]} 10. Nd2 {[%clk 0:02:43]}  Nxd4 {[%clk 0:02:06]} 11. Nxe4 {[%clk 0:02:41]}  Qb6 {[%clk 0:01:47]} 12. cxd4 {[%clk 0:02:23]}  Bd6 {[%clk 0:01:45]} 13. Nxd6 {[%clk 0:02:19]}  Qxd6 {[%clk 0:01:42]} 14. Rc1 {[%clk 0:02:14]}  c6 {[%clk 0:01:41]} 15. d5 {[%clk 0:02:13]}  cxd5 {[%clk 0:01:17]} 16. Bc5 {[%clk 0:02:13]}  Qd8 {[%clk 0:01:17]} 17. Qb3 {[%clk 0:02:09]}  b6 {[%clk 0:01:04]} 18. Bxe7 {[%clk 0:01:46]}  Qxe7 {[%clk 0:01:04]} 19. Bxd5 {[%clk 0:01:47]}  Bb7 {[%clk 0:01:01]} 20. Rfe1 {[%clk 0:01:40]}  Qd7 {[%clk 0:01:01]} 21. Rcd1 {[%clk 0:01:36]}  Bxd5 {[%clk 0:01:01]} 22. Rxd5 {[%clk 0:01:37]}  Qc7 {[%clk 0:01:00]} 23. Rde5 {[%clk 0:01:34]}  a5 {[%clk 0:00:44]} 24. Re7 {[%clk 0:01:33]}  Qc5 {[%clk 0:00:42]} 25. R1e5 {[%clk 0:01:31]}  Qc1+ {[%clk 0:00:40]} 26. Kg2 {[%clk 0:01:31]}  Qc6+ {[%clk 0:00:37]} 27. Kg1 {[%clk 0:01:26]}  Rad8 {[%clk 0:00:36]} 28. Re1 {[%clk 0:01:05]}  h6 {[%clk 0:00:35]} 29. h4 {[%clk 0:01:04]}  Rd6 {[%clk 0:00:30]} 30. a3 {[%clk 0:01:01]}  Rf6 {[%clk 0:00:30]} 31. R1e2 {[%clk 0:00:57]}  Rd8 {[%clk 0:00:28]} 32. Qc2 {[%clk 0:00:52]}  Qf3 {[%clk 0:00:19]} 33. Re8+ {[%clk 0:00:51]} 1-0


[Site "https://www.chess.com"]

[Event "Titled Tuesday Blitz March 15 Late 2022"]
[White "Weber, Samuel"]
[Black "Romanchuk, Viktor"]
[WhiteFideId "12924008"]
[BlackFideId "14109271"]
[WhiteElo "2215"]
[BlackElo "2242"]
[Result "1-0"]
[Round "02"]
[TimeControl "180+1"]
[Date "2022.03.16"]
[WhiteClock "0:00:18"]
[BlackClock "0:00:10"]

1. e4 {[%clk 0:02:59]}  e6 {[%clk 0:02:59]} 2. d3 {[%clk 0:02:59]}  d5 {[%clk 0:02:59]} 3. Nd2 {[%clk 0:02:58]}  Nf6 {[%clk 0:02:59]} 4. Ngf3 {[%clk 0:02:58]}  c5 {[%clk 0:02:59]} 5. g3 {[%clk 0:02:58]}  g6 {[%clk 0:02:59]} 6. Bg2 {[%clk 0:02:58]}  Bg7 {[%clk 0:03:00]} 7. O-O {[%clk 0:02:58]}  O-O {[%clk 0:03:00]} 8. Re1 {[%clk 0:02:57]}  Nc6 {[%clk 0:03:00]} 9. c3 {[%clk 0:02:57]}  a5 {[%clk 0:03:00]} 10. a4 {[%clk 0:02:58]}  b6 {[%clk 0:02:59]} 11. exd5 {[%clk 0:02:52]}  exd5 {[%clk 0:02:58]} 12. Nb3 {[%clk 0:02:49]}  Bb7 {[%clk 0:02:22]} 13. d4 {[%clk 0:02:30]}  cxd4 {[%clk 0:02:14]} 14. Nbxd4 {[%clk 0:02:27]}  Ne4 {[%clk 0:02:12]} 15. Bf4 {[%clk 0:02:13]}  Nxd4 {[%clk 0:02:03]} 16. Nxd4 {[%clk 0:02:11]}  Qd7 {[%clk 0:02:02]} 17. Nb5 {[%clk 0:02:02]}  Qc6 {[%clk 0:01:48]} 18. Qb3 {[%clk 0:01:54]}  Nc5 {[%clk 0:01:26]} 19. Qc2 {[%clk 0:01:43]}  Rad8 {[%clk 0:01:25]} 20. Rad1 {[%clk 0:01:39]}  Ne4 {[%clk 0:01:09]} 21. Qb3 {[%clk 0:01:09]}  Nc5 {[%clk 0:01:07]} 22. Qa2 {[%clk 0:01:09]}  Rd7 {[%clk 0:00:56]} 23. c4 {[%clk 0:01:01]}  Qc8 {[%clk 0:00:37]} 24. cxd5 {[%clk 0:00:57]}  Qa8 {[%clk 0:00:35]} 25. h4 {[%clk 0:00:30]}  h6 {[%clk 0:00:32]} 26. h5 {[%clk 0:00:29]}  g5 {[%clk 0:00:31]} 27. Bc7 {[%clk 0:00:29]}  Qa6 {[%clk 0:00:18]} 28. Bf1 {[%clk 0:00:25]}  Qa8 {[%clk 0:00:17]} 29. Bxb6 {[%clk 0:00:19]}  Bxd5 {[%clk 0:00:16]} 30. Qb1 {[%clk 0:00:19]}  Ne6 {[%clk 0:00:14]} 31. Qf5 {[%clk 0:00:17]}  Bc6 {[%clk 0:00:12]} 32. Bd3 {[%clk 0:00:16]}  Rb8 {[%clk 0:00:10]} 33. Qh7+ {[%clk 0:00:17]}  Kf8 {[%clk 0:00:10]} 34. Rxe6 {[%clk 0:00:17]}  fxe6 {[%clk 0:00:10]} 35. Bc5+ {[%clk 0:00:18]}  Ke8 {[%clk 0:00:10]} 36. Qg8+ {[%clk 0:00:18]}  Bf8 {[%clk 0:00:10]} 37. Qxf8# {[%clk 0:00:18]} 1-0


[Site "https://www.chess.com"]

[Event "Titled Tuesday Blitz March 15 Late 2022"]
[White "Xiong, Jeffery"]
[Black "Najer, Evgeniy"]
[WhiteFideId "2047640"]
[BlackFideId "4118987"]
[WhiteElo "2727"]
[BlackElo "2562"]
[Result "1-0"]
[Round "02"]
[TimeControl "180+1"]
[Date "2022.03.15"]
[WhiteClock "0:00:46"]
[BlackClock "0:00:04"]

1. d4 {[%clk 0:03:00]}  d5 {[%clk 0:02:59]} 2. Nf3 {[%clk 0:02:59]}  Nf6 {[%clk 0:02:58]} 3. Bf4 {[%clk 0:03:00]}  c5 {[%clk 0:02:56]} 4. e3 {[%clk 0:03:00]}  Nc6 {[%clk 0:02:55]} 5. Nbd2 {[%clk 0:03:01]}  Nh5 {[%clk 0:02:53]} 6. Be5 {[%clk 0:02:52]}  e6 {[%clk 0:02:50]} 7. c3 {[%clk 0:02:50]}  f6 {[%clk 0:02:46]} 8. Bg3 {[%clk 0:02:50]}  g6 {[%clk 0:02:46]} 9. Bh4 {[%clk 0:02:49]}  cxd4 {[%clk 0:02:39]} 10. Nxd4 {[%clk 0:02:38]}  Nxd4 {[%clk 0:02:35]} 11. exd4 {[%clk 0:02:39]}  Bd6 {[%clk 0:02:32]} 12. Be2 {[%clk 0:02:28]}  Nf4 {[%clk 0:02:28]} 13. O-O {[%clk 0:02:28]}  O-O {[%clk 0:02:24]} 14. Re1 {[%clk 0:02:26]}  Bd7 {[%clk 0:02:16]} 15. Bf1 {[%clk 0:02:24]}  Rf7 {[%clk 0:01:47]} 16. Bg3 {[%clk 0:02:24]}  g5 {[%clk 0:01:40]} 17. c4 {[%clk 0:02:23]}  Rc8 {[%clk 0:01:24]} 18. Rc1 {[%clk 0:02:22]}  Bb8 {[%clk 0:01:02]} 19. Nb1 {[%clk 0:02:13]}  Bc6 {[%clk 0:00:49]} 20. Rc3 {[%clk 0:02:09]}  Qd7 {[%clk 0:00:45]} 21. Bxf4 {[%clk 0:01:23]}  Bxf4 {[%clk 0:00:35]} 22. g3 {[%clk 0:01:23]}  Bd6 {[%clk 0:00:33]} 23. Rce3 {[%clk 0:01:22]}  Re8 {[%clk 0:00:23]} 24. Nc3 {[%clk 0:01:22]}  Rfe7 {[%clk 0:00:18]} 25. Bh3 {[%clk 0:01:16]}  f5 {[%clk 0:00:18]} 26. Qh5 {[%clk 0:01:16]}  g4 {[%clk 0:00:17]} 27. Bg2 {[%clk 0:01:16]}  dxc4 {[%clk 0:00:12]} 28. d5 {[%clk 0:01:17]}  exd5 {[%clk 0:00:12]} 29. Bxd5+ {[%clk 0:01:10]}  Kh8 {[%clk 0:00:10]} 30. Rxe7 {[%clk 0:00:45]}  Rxe7 {[%clk 0:00:10]} 31. Rxe7 {[%clk 0:00:46]}  Bxe7 {[%clk 0:00:04]} 32. Qf7 {[%clk 0:00:46]} 1-0


[Site "https://www.chess.com"]